fUSD/lending_fUSD_20250325
["ID","MTS","AMOUNT","RATE_DAILY","PERIOD"]
[356645764,1742897364267,-601.91,0.00047397,120]
[356645765,1742897364291,-500.0,0.00047397,120]
[356645766,1742897364316,-781.72,0.00047397,120]
[356645767,1742897364341,-500.0,0.00047397,120]
[356645768,1742897364368,-620.27,0.00047397,120]
[356645769,1742897364393,-1502.4,0.00047397,120]
[356645770,1742897364419,-500.0,0.00047397,120]
[356645771,1742897364444,-3754.59,0.00047397,120]
[356645772,1742897364469,-500.0,0.00047397,120]
[356645773,1742897364494,-629.82834889,0.00047397,120]
[356645774,1742897364518,-500.0,0.00047397,120]
[356645775,1742897364542,-500.0,0.00047397,120]
[356645776,1742897364566,-500.0,0.00047397,120]
[356645777,1742897364590,-929.7,0.00047397,120]
[356645778,1742897364614,-2000.0,0.000475,120]
[356645779,1742897364639,-5136.05,0.000475,120]
[356645780,1742897364662,-649.0,0.00047626,30]
[356645781,1742897364686,-500.0,0.00047671,120]
[356645782,1742897364711,-500.0,0.00047671,120]
[356645783,1742897364735,-500.0,0.00047671,120]
[356645784,1742897364761,-601.91,0.00047671,120]
[356645785,1742897364785,-500.0,0.00047671,120]
[356645786,1742897364809,-781.72,0.00047671,120]
[356645787,1742897364841,-500.0,0.00047671,120]
[356645788,1742897364865,-620.27,0.00047671,120]
[356645789,1742897364891,-1502.4,0.00047671,120]
[356645790,1742897364916,-500.0,0.00047671,120]
[356645791,1742897364941,-3754.59,0.00047671,120]
[356645792,1742897364965,-500.0,0.00047671,120]
[356645793,1742897364991,-496.10816298,0.00047671,120]
[356645794,1742897365018,-500.0,0.00047671,120]
[356645795,1742897365044,-500.0,0.00047671,120]
[356645796,1742897365069,-929.7,0.00047671,120]
[356645797,1742897365096,-3000.0,0.0004786,31]
[356645798,1742897365129,-219.0,0.000479,120]
[356645799,1742897365157,-1500.0,0.000479,30]
[356645800,1742897365184,-500.0,0.00047945,120]
[356645801,1742897365209,-500.0,0.00047945,120]
[356645802,1742897365233,-500.0,0.00047945,120]
[356645803,1742897365258,-601.91,0.00047945,120]
[356645804,1742897365282,-495.94874839,0.00047945,120]
[356645805,1742897365306,-781.72,0.00047945,120]
[356645806,1742897365331,-500.0,0.00047945,120]
[356645807,1742897365355,-620.27,0.00047945,120]
[356645808,1742897365385,-1502.4,0.00047945,120]
[356645809,1742897365411,-500.0,0.00047945,120]
[356645810,1742897365536,-3754.59,0.00047945,120]
[356645811,1742897365562,-500.0,0.00047945,120]
[356645812,1742897365586,-500.0,0.00047945,120]
[356645813,1742897365611,-500.0,0.00047945,120]
[356645814,1742897365636,-929.7,0.00047945,120]
[356645815,1742897365659,-278.38,0.0004799,120]
[356645816,1742897365683,-260.3008714,0.00048,30]
[356645817,1742897365708,-606253.0,0.00048,120]
[356645818,1742897365732,-312.0,0.00048,120]
[356645819,1742897365756,-109215.97,0.00048,120]
[356645820,1742897365779,-170.96016099,0.00048,30]
[356645821,1742897365804,-500.0,0.00048,120]
[356645822,1742897365827,-414.16,0.00048,120]
[356645823,1742897365851,-500.0,0.00048,120]
[356645824,1742897365875,-500.0,0.00048064,120]
[356645825,1742897365898,-500.0,0.00048064,120]
[356645826,1742897365923,-649.0,0.00048117,30]
[356645827,1742897365947,-500.0,0.00048219,120]
[356645828,1742897365971,-500.0,0.00048219,120]
[356645829,1742897365995,-500.0,0.00048219,120]
[356645830,1742897366020,-601.91,0.00048219,120]
[356645831,1742897366045,-781.72,0.00048219,120]
[356645832,1742897366069,-500.0,0.00048219,120]
[356645833,1742897366093,-620.27,0.00048219,120]
[356645834,1742897366118,-1502.4,0.00048219,120]
[356645835,1742897366143,-500.0,0.00048219,120]
[356645836,1742897366168,-3754.59,0.00048219,120]
[356645837,1742897366192,-500.0,0.00048219,120]
[356645838,1742897366217,-397.03169621,0.00048219,120]
[356645839,1742897366241,-500.0,0.00048219,120]
[356645840,1742897366266,-929.7,0.00048219,120]
[356645841,1742897366289,-6080.75985863,0.00048318,120]
[356645842,1742897366313,-200.0,0.00048375,120]
[356645843,1742897366338,-2000.0,0.0004844,31]
[356645844,1742897366367,-500.0,0.00048493,120]
[356645845,1742897366392,-500.0,0.00048493,120]
[356645846,1742897366418,-500.0,0.00048493,120]
[356645847,1742897366442,-601.91,0.00048493,120]
[356645848,1742897366466,-781.72,0.00048493,120]
[356645849,1742897366490,-500.0,0.00048493,120]
[356645850,1742897366513,-620.27,0.00048493,120]
[356645851,1742897366539,-1502.4,0.00048493,120]
[356645852,1742897366564,-500.0,0.00048493,120]
[356645853,1742897366588,-3754.59,0.00048493,120]
[356645854,1742897366612,-500.0,0.00048493,120]
[356645855,1742897366636,-500.0,0.00048493,120]
[356645856,1742897366659,-929.7,0.00048493,120]
[356645857,1742897366683,-649.0,0.00048608,30]
[356645858,1742897366707,-500.0,0.00048612,120]
[356645859,1742897366730,-500.0,0.00048612,120]
[356645860,1742897366754,-500.0,0.00048767,120]
[356645861,1742897366777,-500.0,0.00048767,120]
[356645862,1742897366802,-500.0,0.00048767,120]
[356645863,1742897366826,-601.91,0.00048767,120]
[356645864,1742897366851,-781.72,0.00048767,120]
[356645865,1742897366875,-500.0,0.00048767,120]
[356645866,1742897366899,-620.27,0.00048767,120]
[356645867,1742897366923,-1502.4,0.00048767,120]
[356645868,1742897366948,-500.0,0.00048767,120]
[356645869,1742897366971,-3754.59,0.00048767,120]
[356645870,1742897366995,-500.0,0.00048767,120]
[356645871,1742897367019,-500.0,0.00048767,120]
[356645872,1742897367045,-929.7,0.00048767,120]
[356645873,1742897367070,-199.03345463,0.00048898,120]
[356645874,1742897367095,-206.0,0.000489,30]
[356645875,1742897367119,-20000.0,0.00048993,60]
[356645876,1742897367144,-20000.0,0.00048993,60]
[356645877,1742897367168,-20000.0,0.00048993,60]
[356645878,1742897367193,-20000.0,0.00048993,60]
[356645879,1742897367217,-15895.93027204,0.00048993,60]
[356645880,1742897367243,-50000.0,0.00049,49]
[356645881,1742897367268,-518838.82531331,0.00049,120]
[356645882,1742897367292,-1026.0,0.00049,120]
[356645883,1742897367316,-191.71603187,0.00049,120]
[356645884,1742897367339,-1054.76203627,0.00049,30]
[356645885,1742897367365,-10202.95710948,0.00049,30]
[356645886,1742897367392,-506.137,0.00049,120]
[356645887,1742897367416,-1000000.0,0.00049,120]
[356645888,1742897367442,-1000000.0,0.00049,120]
[356645889,1742897367466,-500.0,0.00049041,120]
[356645890,1742897367489,-500.0,0.00049041,120]
[356645891,1742897367512,-500.0,0.00049041,120]
[356645892,1742897367537,-601.91,0.00049041,120]
[356645893,1742897367560,-781.72,0.00049041,120]
[356645894,1742897367585,-500.0,0.00049041,120]
[356645895,1742897367609,-620.27,0.00049041,120]
[356645896,1742897367634,-1502.4,0.00049041,120]
[356645897,1742897367659,-500.0,0.00049041,120]
[356645898,1742897367684,-3754.59,0.00049041,120]
[356645899,1742897367708,-384.28833685,0.00049041,120]
[356645900,1742897367733,-500.0,0.00049041,120]
[356645901,1742897367758,-929.7,0.00049041,120]
[356645902,1742897367783,-649.0,0.00049099,30]
[356645903,1742897367807,-235.30286215,0.00049099,30]
[356645904,1742897367830,-532.74706667,0.0004916,120]
[356645905,1742897367854,-500.0,0.0004916,120]
[356645906,1742897367879,-500.0,0.00049315,120]
[356645907,1742897367902,-500.0,0.00049315,120]
[356645908,1742897367926,-500.0,0.00049315,120]
[356645909,1742897367949,-601.91,0.00049315,120]
[356645910,1742897367971,-781.72,0.00049315,120]
[356645911,1742897367996,-500.0,0.00049315,120]
[356645912,1742897368021,-620.27,0.00049315,120]
[356645913,1742897368046,-1502.4,0.00049315,120]
[356645914,1742897368255,-500.0,0.00049315,120]
[356645915,1742897368285,-3754.59,0.00049315,120]
[356645916,1742897368315,-500.0,0.00049315,120]
[356645917,1742897368340,-929.7,0.00049315,120]
[356645918,1742897368365,-500.0,0.00049315,120]
[356645919,1742897368392,-500.0,0.00049315,120]
[356645920,1742897368417,-500.0,0.00049315,120]
[356645921,1742897368442,-500.0,0.00049315,120]
[356645922,1742897368469,-500.0,0.00049315,120]
[356645923,1742897368494,-500.0,0.00049315,120]
[356645924,1742897368518,-500.0,0.00049315,120]
[356645925,1742897368543,-276.08750264,0.00049315,120]
[356645926,1742897368569,-500.0,0.00049315,120]
[356645927,1742897368594,-500.0,0.00049315,120]
[356645928,1742897368619,-500.0,0.00049315,120]
[356645929,1742897368649,-500.0,0.00049315,120]
[356645930,1742897368675,-500.0,0.00049315,120]
[356645931,1742897368700,-500.0,0.00049315,120]
[356645932,1742897368725,-500.0,0.00049315,120]
[356645933,1742897368750,-500.0,0.00049315,120]
[356645934,1742897374680,-1398.7942,0.000118,2]
[356645936,1742897405962,-153.0,0.00011799,2]
[356645937,1742897405985,-7.65,0.000118,2]
[356645938,1742897409307,-150.0,0.000118,2]
[356645939,1742897415577,-161.44191272,0.000118,2]
[356645944,1742897431816,-425.85126356,0.000118,2]
[356645945,1742897431869,-454.44587444,0.000118,2]
[356645946,1742897431975,-2916.71622234,0.000118,2]
[356645947,1742897431985,-3105.4211,0.000118,2]
[356645948,1742897431995,-3710.1807,0.000118,2]
[356645949,1742897432005,-150.0,0.00011825,2]
[356645950,1742897432014,-150.0,0.00011899,2]
[356645951,1742897432024,-12925.43052921,0.000119,2]
[356645952,1742897432036,-155666.23955652,0.000119,2]
[356645953,1742897432045,-1913.6831,0.000119,2]
[356645954,1742897432055,-9268.1016,0.000119,2]
[356645955,1742897432064,-158.6584178,0.00011934,2]
[356645956,1742897432073,-519.0431348,0.00011934,2]
[356645957,1742897432083,-83.66936456,0.00011934,2]
[356645958,1742897432095,-119.22447193,0.00011934,2]
[356645959,1742897432104,-259.97556487,0.00011973,2]
[356645960,1742897432114,-500.83641145,0.00011973,2]
[356645961,1742897432123,-1192.71790424,0.00012,2]
[356645962,1742897432134,-1132.94940899,0.00012,2]
[356645963,1742897432146,-1844.71312705,0.00012,2]
[356645964,1742897432158,-25430.0,0.00012,2]
[356645965,1742897432170,-6099.9999999,0.00012,2]
[356645966,1742897432182,-5880.0,0.00012,2]
[356645968,1742897432193,-3550.000005,0.00012,2]
[356645970,1742897432206,-1300.0,0.00012,2]
[356645972,1742897432217,-864.10549473,0.00012,2]
[356646213,1742897437620,-7136.4888,0.000117,2]
[356646214,1742897437630,-6489.30042887,0.00012,2]
[356646215,1742897437641,-400.165,0.00012,2]
[356646216,1742897437830,-487.73951977,0.00012,2]
[356646217,1742897437883,-476.81295156,0.00012,2]
[356646220,1742897438099,-566.26057689,0.00012,2]
[356646221,1742897438120,-3493.8191515,0.00012,2]
[356646222,1742897438132,-1680.57800616,0.00012,2]
[356646223,1742897440429,-475.59730418,0.00012,2]
[356646224,1742897440445,-640.19390599,0.00012,2]
[356646225,1742897440459,-543.09390782,0.00012,2]
[356646226,1742897440472,-1119.2,0.00012,2]
[356646233,1742897442802,-1376.9415312,0.00012,2]
[356646259,1742897445494,-150.0,0.00012,2]
[356646262,1742897445857,-9318.56571834,0.00012,2]
[356646263,1742897445912,-5707.1075395,0.00012,2]
[356646264,1742897445966,-604.0,0.00012,2]
[356646265,1742897445978,-311442.33087898,0.00012,2]
[356646267,1742897451817,-276.55125496,0.00012,2]
[356646268,1742897466068,-150.0,0.00012,2]
[356646269,1742897476546,-247.159,0.00011934,2]
[356646270,1742897489112,-171.59652938,0.00011934,2]
[356646271,1742897489138,-102.45048617,0.00012,2]
[356646272,1742897502367,-152.91151117,0.00011934,2]
[356646273,1742897507828,-281.1640407,0.00011934,2]
[356646274,1742897522615,-150.0,0.00011934,2]
[356646282,1742897882003,808.21386547,0.00031743,30]
[356646283,1742897885597,228.51437805,0.00031743,30]
[356646284,1742897892139,4849.0,0.00031743,120]
[356646285,1742897911819,-241.312374,0.0001176,2]
[356646286,1742897917772,-157.9077209,0.0001176,2]
[356646287,1742897927640,-416.6209051,0.0001176,2]
[356646288,1742897927665,-86.8982949,0.0001176,2]
[356646289,1742897932673,-151.6906,0.0001176,2]
[356646290,1742897938450,-29.4591051,0.0001176,2]
[356646291,1742897938472,-121.8208949,0.00011873,2]
[356646292,1742897949836,5000.0,0.00031743,120]
[356646293,1742897950881,2566.74694534,0.00031743,60]
[356646294,1742897953554,-154.000581,0.00011813,2]
[356646295,1742898003188,3918.24843223,0.00031739,120]
[356646296,1742898009307,160.27,0.00031739,30]
[356646297,1742898027592,-182.8084621,0.00011813,2]
[356646298,1742898031947,-125.6954489,0.00011813,2]
[356646299,1742898031974,-42.04129093,0.00011873,2]
[356646300,1742898047547,-1.24528423,0.00011873,2]
[356646301,1742898047570,-292.04007199,0.000119,2]
[356646302,1742898061064,-152.91151117,0.000119,2]
[356646303,1742898067280,-345.0,0.000119,2]
[356646304,1742898072289,-368.22971684,0.000119,2]
[356646305,1742898074730,-150.0,0.00018501,7]
[356646306,1742898078751,-150.0,0.00011901,2]
[356646307,1742898078776,-155.51008316,0.00011973,2]
[356646308,1742898253673,808.21386547,0.00031739,30]
[356646309,1742898275623,228.51437805,0.00031734,30]
[356646310,1742898307102,160.27,0.00031734,30]
[356646311,1742898311177,5337.61598021,0.00031734,30]
[356646312,1742898312500,3644.82136404,0.00031734,30]
[356646313,1742898312737,2263.52835515,0.00031734,120]
[356646314,1742898313044,256.39379949,0.00031734,30]
[356646315,1742898313171,220.31185259,0.00031734,91]
[356646316,1742898316996,4105.48144673,0.00031734,30]
[356646317,1742898320478,284.98160504,0.00031734,120]
[356646318,1742898321340,1898.43520784,0.00031734,120]
[356646319,1742898322074,3967.8267013,0.00031734,120]
[356646320,1742898325644,4777.23289352,0.00031734,120]
[356646321,1742898328555,3683.90076068,0.00011,2]
[356646322,1742898328624,298.99141017,0.00031734,30]
[356646324,1742898329279,348.79855164,0.00031734,30]
[356646325,1742898329590,4500.0,0.00031734,30]
[356646326,1742898337929,3973.56332133,0.00031734,120]
[356646327,1742898339972,1323.62388863,0.00031734,120]
[356646328,1742898341603,883.17749781,0.00031734,120]
[356646329,1742898343896,1597.67955094,0.00031734,120]
[356646330,1742898346082,1000.0,0.00031734,30]
[356646331,1742898346759,1000.0,0.00031734,30]
[356646332,1742898346873,336.73526442,0.00031734,120]
[356646333,1742898347412,1000.0,0.00031734,30]
[356646334,1742898348066,1000.0,0.00031734,30]
[356646335,1742898348677,1000.0,0.00031734,30]
[356646336,1742898349300,1000.0,0.00031734,30]
[356646337,1742898350089,1000.0,0.00031734,30]
[356646338,1742898350685,1000.0,0.00031734,30]
[356646339,1742898351283,1000.0,0.00031734,30]
[356646340,1742898351895,1000.0,0.00031734,30]
[356646341,1742898352493,1000.0,0.00031734,30]
[356646342,1742898353084,1000.0,0.00031734,30]
[356646343,1742898353413,4520.88232311,0.00031734,120]
[356646344,1742898353682,1000.0,0.00031734,30]
[356646345,1742898354722,1000.0,0.00031734,30]
[356646346,1742898355336,1000.0,0.00031734,30]
[356646347,1742898355927,1000.0,0.00031734,30]
[356646348,1742898356225,1259.92908835,0.00031734,30]
[356646349,1742898356507,1000.0,0.00031734,30]
[356646350,1742898357545,1000.0,0.00031734,30]
[356646351,1742898358128,1000.0,0.00031734,30]
[356646352,1742898358765,1000.0,0.00031734,30]
[356646353,1742898359359,1000.0,0.00031734,30]
[356646354,1742898359945,1000.0,0.00031734,30]
[356646355,1742898360528,1000.0,0.00031734,30]
[356646356,1742898361135,420.86070241,0.00031734,90]
[356646357,1742898361163,1000.0,0.00031734,30]
[356646358,1742898361881,1000.0,0.00031734,30]
[356646359,1742898362947,1000.0,0.00031734,30]
[356646360,1742898363581,1000.0,0.00031734,30]
[356646361,1742898364440,1000.0,0.00031734,30]
[356646362,1742898365051,1000.0,0.00031734,30]
[356646363,1742898365638,2524.83686599,0.00031734,120]
[356646364,1742898365670,1000.0,0.00031734,30]
[356646365,1742898366297,1000.0,0.00031734,30]
[356646366,1742898366911,662.57728065,0.00031734,30]
[356646367,1742898368571,821.30377693,0.00031734,120]
[356646368,1742898373750,158.03165435,0.00031734,30]
[356646369,1742898375221,1829.31694418,0.00031734,120]
[356646370,1742898377420,207.93380709,0.00031734,120]
[356646371,1742898383384,1889.53683914,0.00031734,120]
[356646372,1742898388607,1149.74822983,0.00031734,120]
[356646373,1742898410927,4923.54388147,0.00031734,30]
[356646374,1742898414032,215.12292447,0.00031734,120]
[356646375,1742898421233,1735.34019894,0.00031734,120]
[356646376,1742898421683,1351.63800053,0.00031734,120]
[356646377,1742898433888,158.58449132,0.00031734,120]
[356646378,1742898454641,393.81231876,0.00031734,120]
[356646379,1742898455191,3915.82069,0.00031734,120]
[356646380,1742898459102,2024.10393997,0.00031734,120]
[356646381,1742898461168,4429.1874386,0.00031734,30]
[356646382,1742898464951,5009.43144374,0.00031734,120]
[356646383,1742898467242,1080.03136753,0.00031734,120]
[356646384,1742898468449,4590.48824299,0.00031734,120]
[356646385,1742898471631,3765.55540333,0.00031734,30]
[356646386,1742898472641,395.79163704,0.00031734,120]
[356646387,1742898479944,24143.09923932,0.0001,2]
[356646388,1742898479975,1621.62222034,0.0001,2]
[356646389,1742898480003,4077.25165748,0.0001,2]
[356646390,1742898480041,2050.13164603,0.0001,2]
[356646391,1742898480084,2611.27101039,0.0001,2]
[356646392,1742898480126,2525.24802242,0.0001,2]
[356646393,1742898480165,3396.82834128,0.0001,2]
[356646394,1742898480204,3492.1548385,0.0001,2]
[356646395,1742898480236,3275.04868858,0.0001,2]
[356646396,1742898480264,1630.53657135,0.0001,2]
[356646397,1742898480776,313.73151045,0.00031734,30]
[356646398,1742898482014,950.02728398,0.00031734,120]
[356646399,1742898500431,-182.808463,0.00011813,2]
[356646400,1742898500455,-174.70485692,0.00011873,2]
[356646401,1742898500477,-788.38958008,0.00011973,2]
[356646402,1742898505538,335.90214133,0.00031734,120]
[356646403,1742898509924,1280.3811778,0.00031734,120]
[356646404,1742898510251,2027.50355389,0.00031734,120]
[356646405,1742898511028,168.93948681,0.00031734,30]
[356646406,1742898511317,339.68220899,0.00031734,30]
[356646407,1742898511494,4306.44343312,0.00031734,120]
[356646408,1742898511581,1254.68760153,0.00031734,120]
[356646409,1742898512651,879.6645738,0.00031734,120]
[356646410,1742898512725,3358.22378155,0.00031734,40]
[356646411,1742898513184,1186.09557509,0.00031734,120]
[356646412,1742898513845,215.48295141,0.00031734,60]
[356646413,1742898513903,18757.26269472,0.00031734,60]
[356646414,1742898514032,5280.76527446,0.00031734,120]
[356646415,1742898514424,6860.47776198,0.00031734,120]
[356646416,1742898514466,4165.07274339,0.00031734,120]
[356646417,1742898515210,7428.57849821,0.00031734,120]
[356646418,1742898515697,4866.67158789,0.00031734,120]
[356646419,1742898515959,1291.11917955,0.00031734,120]
[356646420,1742898516822,346.72938366,0.00031734,120]
[356646421,1742898518666,976.93404299,0.00031734,120]
[356646422,1742898519732,210.31532711,0.00031734,120]
[356646423,1742898520779,5118.74166998,0.00031734,120]
[356646424,1742898521113,506.24356763,0.00031734,120]
[356646425,1742898521813,603.48206015,0.00031734,120]
[356646426,1742898522087,168.04458495,0.00031734,120]
[356646427,1742898525225,-187.40607384,0.000119,2]
[356646428,1742898537538,-154.0005802,0.00011873,2]
[356646429,1742898544966,500.0,0.00031734,90]
[356646430,1742898573595,600.0,0.0003173,120]
[356646431,1742898586578,-156.21050796,0.00011,2]
[356646435,1742898592011,600.0,0.0003173,120]
[356646436,1742898593892,1000.0,0.0003173,30]
[356646437,1742898609995,600.0,0.0003173,120]
[356646438,1742898618675,-93.78949204,0.00011,2]
[356646439,1742898618697,-59.12201913,0.00011813,2]
[356646441,1742898627700,600.0,0.0003173,120]
[356646449,1742898631991,-119.07453587,0.00011813,2]
[356646450,1742898632002,-89.7440359,0.00011873,2]
[356646451,1742898632011,-398.37163876,0.000119,2]
[356646452,1742898632021,-150.90740655,0.00011973,2]
[356646453,1742898632031,-328.70313746,0.0001199,2]
[356646454,1742898632040,-150.0,0.00011999,2]
[356646455,1742898632050,-171.59816346,0.00011999,2]
[356646456,1742898632059,-204165.00012025,0.00012,2]
[356646457,1742898632151,-43010.79713,0.00012,2]
[356646471,1742898637845,-747.0094225,0.00012,2]
[356646472,1742898638006,-11899.3940201,0.00012,2]
[356646473,1742898638017,-9699.07474949,0.00012,2]
[356646474,1742898638028,-16411.82440605,0.00012,2]
[356646475,1742898638039,-1298.45990584,0.00012,2]
[356646477,1742898640509,-243.75188303,0.00012,2]
[356646478,1742898640532,-1746.63317938,0.00012,2]
[356646497,1742898662891,800.0,0.0003173,120]
[356646498,1742898677861,700.0,0.0003173,120]
[356646499,1742898706730,700.0,0.0003173,120]
[356646500,1742898725687,800.0,0.00031729,120]
[356646502,1742898740855,800.0,0.00031729,120]
[356646503,1742898780752,500.0,0.00031729,120]
[356646504,1742898782518,-150.0,0.000119,2]
[356646505,1742898783855,1000.0,0.00031729,30]
[356646506,1742898784097,-191.18600319,0.000119,2]
[356646507,1742898800798,115569.4942508,0.00031729,30]
[356646508,1742898800831,-188.0768862,0.000119,2]
[356646509,1742898807192,500.0,0.00031729,120]
[356646510,1742898821881,-150.0,0.000119,2]
[356646511,1742898824730,500.0,0.00031729,120]
[356646512,1742898826140,-151.0,0.000118,2]
[356646513,1742898836787,-5.21050796,0.000118,2]
[356646514,1742898836808,-144.78949204,0.000119,2]
[356646515,1742898844634,500.0,0.00031729,120]
[356646516,1742898863328,500.0,0.00031729,120]
[356646517,1742898866533,5000.0,0.00031729,120]
[356646518,1742898877415,500.0,0.00031729,120]
[356646519,1742898878051,-150.0,0.0001184,2]
[356646520,1742898890703,500.0,0.00031729,120]
[356646521,1742898910584,1500.0,0.00031729,120]
[356646522,1742898916596,-151.0,0.0001184,2]
[356646523,1742898925606,1000.0,0.00031729,120]
[356646524,1742898945227,1700.0,0.00031729,120]
[356646525,1742899134518,3000.0,0.00031734,120]
[356646526,1742899257780,-182.808462,0.000119,2]
[356646527,1742899264366,-276.3349,0.0001184,2]
[356646528,1742899313701,-166.66,0.00011725,2]
[356646529,1742899367231,1000.0,0.00031734,30]
[356646531,1742899574558,500.0,0.00031736,120]
[356646532,1742899606983,499.99,0.00031736,120]
[356646533,1742899667587,249.0,0.0003177,120]
[356646534,1742899730423,3087.0,0.0003177,31]
[356646535,1742899730811,3087.0,0.0003177,31]
[356646536,1742899731837,3087.0,0.0003177,31]
[356646537,1742899732287,3087.0,0.0003177,31]
[356646538,1742899732666,3087.0,0.0003177,31]
[356646539,1742899733087,3087.0,0.0003177,31]
[356646551,1742899832126,-224.133562,0.00011839,2]
[356646552,1742899832135,-150.0,0.00011899,2]
[356646553,1742899832145,-180.50517306,0.000119,2]
[356646554,1742899832155,-268.0219,0.000119,2]
[356646555,1742899832165,-3139.949,0.000119,2]
[356646556,1742899832175,-177.92441336,0.000119,2]
[356646557,1742899832185,-167.88567644,0.000119,2]
[356646558,1742899832194,-4398.7347079,0.000119,2]
[356646559,1742899832206,-2542.69602746,0.000119,2]
[356646560,1742899832216,-424.14323602,0.000119,2]
[356646561,1742899832226,-500.0,0.00011973,2]
[356646562,1742899832240,-500.0,0.00011973,2]
[356646563,1742899832249,-150.9723818,0.00011973,2]
[356646564,1742899832258,-3656.58510467,0.00011989,2]
[356646565,1742899832267,-178.50468506,0.00011989,2]
[356646566,1742899832278,-1100.0,0.00012,2]
[356646567,1742899832287,-6770.78403199,0.00012,2]
[356646568,1742899832309,-508.47198714,0.00012,2]
[356646592,1742899838257,-269.26843988,0.00011989,2]
[356646593,1742899838268,-992.0,0.00012,2]
[356646594,1742899838279,-100.05335791,0.00012,2]
[356646595,1742899838291,-603.7737553,0.00012,2]
[356646596,1742899838304,-256.91980793,0.00012,2]
[356646605,1742899840268,-1546685.40537212,0.00012,2]
[356646606,1742899840279,-1967549.98963775,0.00012,2]
[356646607,1742899840288,-808.25068005,0.00012156,2]
[356646608,1742899840298,-808.25068004,0.00012156,2]
[356646609,1742899840309,-416.99151592,0.0001224,2]
[356646610,1742899840320,-255.0,0.00012982,2]
[356646611,1742899840329,-300.0,0.00013,2]
[356646612,1742899840338,-150.0,0.00013023,2]
[356646613,1742899840347,-150.0,0.00013089,2]
[356646614,1742899840356,-150.0,0.00013089,2]
[356646615,1742899840365,-195.0,0.0001416,2]
[356646616,1742899840374,-250.0,0.00014764,2]
[356646617,1742899840383,-350.0,0.00015,2]
[356646618,1742899840392,-500.0,0.00015726,2]
[356646619,1742899840401,-6941.4307353,0.00015742,2]
[356646620,1742899840411,-1052.29,0.00016348,2]
[356646621,1742899840419,-214.89158482,0.000165,2]
[356646622,1742899840429,-214.89158471,0.00016567,2]
[356646623,1742899840438,-400.0,0.00017,2]
[356646624,1742899840450,-1000.0,0.00017452,2]
[356646625,1742899840459,-2000.0,0.00017863,2]
[356646626,1742899840468,-200.0,0.00017882,2]
[356646627,1742899840478,-1294.79,0.0001798,2]
[356646628,1742899840488,-631.67,0.00018007,2]
[356646629,1742899840497,-1195.45,0.00018041,2]
[356646630,1742899840507,-5277.05,0.00018063,2]
[356646631,1742899840518,-250.0,0.00018098,2]
[356646632,1742899840527,-180.50517306,0.00018233,2]
[356646633,1742899840537,-23900.0,0.00018265,2]
[356646634,1742899840546,-9419.75,0.0001827,2]
[356646635,1742899840555,-500.0,0.00018273,2]
[356646636,1742899840564,-277.87,0.00018406,2]
[356646637,1742899840573,-916.26,0.00018406,2]
[356646638,1742899840582,-1000.0,0.00018474,2]
[356646639,1742899840591,-200.0,0.0001857,2]
[356646640,1742899840600,-159.9,0.000186,2]
[356646641,1742899840610,-3374.11,0.00018601,2]
[356646642,1742899840619,-1052.29,0.00018612,2]